bitfinex/quotes_ETHUSD_20241106
["timestamp","ask_amount","ask_price","bid_price","bid_amount"]
[1730854845650,4.01195,2492.6,2492.2,0.8033]
[1730854846039,4.01206,2492.5,2492.0,4.01278]
[1730854846691,4.01206,2492.5,2491.9,0.8033]
[1730854846692,4.01221,2492.4,2491.9,0.8033]
[1730854846873,5.2,2495.2,2493.1,12.18]
[1730854847059,5.2,2495.2,2492.2,0.01]
[1730854847060,0.2,2495.2,2494.7,0.01]
[1730854847472,0.2,2495.2,2494.6,0.8033]
[1730854847940,0.2,2495.2,2494.3,0.01]
[1730854847941,4.20774,2495.2,2494.3,0.01]
[1730854848198,0.2,2495.2,2494.3,0.01]
[1730854848549,0.2,2495.2,2494.6,0.01]
[1730854848857,0.2,2495.2,2494.8,0.01]
[1730854849217,0.2,2495.2,2494.9,4.00817]
[1730854849735,0.2,2495.2,2494.8,0.8133]
[1730854849904,0.2,2495.2,2494.8,4.8216]
[1730854850104,0.2,2495.2,2494.9,4.00817]
[1730854850447,0.2,2495.2,2495.1,5.37115]
[1730854850668,0.2,2495.2,2495.1,5.45128251]
[1730854850804,0.00654907,2495.2,2495.1,8.47128251]
[1730854851003,4.00488,2497.0,2496.0,0.01]
[1730854851004,4.81226,2496.8,2496.0,0.01]
[1730854851473,5.0,2496.5,2495.6,0.01]
[1730854851965,5.0,2496.5,2495.6,35.0]
[1730854851966,4.50589,2496.4,2495.6,35.0]
[1730854852268,4.00645,2496.0,2495.6,35.0]
[1730854852639,3.807,2496.3,2495.6,35.0]
[1730854852964,4.00626,2496.1,2495.3,0.01]
[1730854853119,5.0,2496.1,2495.3,0.01]
[1730854853326,3.807,2496.3,2495.5,4.0072]
[1730854853623,0.807,2496.3,2495.6,0.08013373]
[1730854853823,0.807,2496.3,2495.6,0.8033]
[1730854854459,0.5,2496.4,2495.7,4.01688]
[1730854854659,4.50579,2496.4,2495.7,0.01]
[1730854854831,4.50579,2496.4,2495.6,0.8033]
[1730854854832,0.950579,2496.3,2495.6,0.8033]
[1730854855098,4.00608,2496.2,2495.5,0.01]
[1730854855219,4.00608,2496.2,2495.2,0.8033]
[1730854855220,4.00658,2495.9,2495.2,0.8033]
[1730854855420,3.807,2496.1,2495.2,0.8033]
[1730854855666,4.00682,2495.8,2495.2,0.8033]
[1730854855969,5.0,2496.2,2495.2,0.8033]
[1730854855970,5.0,2495.9,2495.2,0.8033]
[1730854856124,5.0,2497.1,2496.3,0.8033]
[1730854856471,9.00489,2497.0,2496.3,0.8025]
[1730854856767,4.00505,2496.9,2496.4,35.0]
[1730854856939,9.00489,2497.0,2496.4,35.0]
[1730854857141,4.81214,2496.8,2496.0,0.01]
[1730854857339,4.0744384,2496.6,2495.7,0.01]
[1730854857538,4.0744384,2496.6,2495.7,0.09012336]
[1730854857539,0.90744384,2496.5,2495.7,0.09012336]
[1730854857724,4.00589,2496.4,2495.7,0.01]
[1730854857923,4.91308384,2496.5,2495.7,0.01]
[1730854857924,4.91308384,2496.5,2495.7,0.09012367]
[1730854858170,5.0,2496.4,2495.6,35.0]
[1730854858363,4.77471,2496.2,2495.5,0.01]
[1730854858567,4.884363,2496.1,2495.5,0.01]
[1730854858728,0.878063,2496.1,2495.5,0.01]
[1730854858926,0.878063,2496.1,2495.5,0.09013037]
[1730854859269,0.878063,2496.1,2495.5,0.01]
[1730854859721,4.884323,2496.1,2495.5,0.01]
[1730854859926,0.5652923,2496.0,2495.5,0.01]
[1730854860562,0.5652923,2496.0,2495.5,0.09013073]
[1730854860765,0.878063,2496.1,2495.5,0.09013073]
[1730854861076,4.00684,2495.8,2495.2,0.01]
[1730854861288,4.00684,2495.8,2494.9,0.8235]
[1730854861289,4.00751,2495.4,2494.9,0.8235]
[1730854861571,4.00751,2495.4,2494.8,0.01]
[1730854861572,4.00752,2495.4,2494.8,0.01]
[1730854861724,0.7686,2495.5,2494.8,0.09015233]
[1730854861930,0.7686,2495.9,2495.4,0.01]
[1730854862128,0.47751,2495.8,2495.4,0.01]
[1730854862349,1.646663,2496.1,2495.4,0.01]
[1730854862627,1.646663,2496.1,2495.4,4.0975034]
[1730854862628,0.878063,2496.1,2495.4,4.0975034]
[1730854863230,0.878063,2496.1,2495.5,35.0]
[1730854863640,0.90744384,2496.5,2495.9,4.00656]
[1730854863841,4.0744384,2496.6,2496.1,0.01]
[1730854863842,0.0689084,2496.6,2496.1,0.01]
[1730854864171,0.0689084,2496.6,2496.3,0.01]
[1730854864757,0.0689084,2496.6,2496.1,0.01]
[1730854864959,0.0689084,2496.6,2496.5,0.8235]
[1730854865165,0.0689084,2496.6,2496.5,43.45920109]
[1730854865333,2.70755261,2497.7,2496.5,46.20869348]
[1730854865535,2.70755261,2497.7,2497.5,0.8335]
[1730854865733,0.07161798,2498.0,2497.5,0.8335]
[1730854865960,0.07161798,2498.0,2497.7,0.01]
[1730854866165,0.07161798,2498.0,2497.6,35.0]
[1730854866402,4.48239278,2498.0,2497.6,35.0]
[1730854866710,4.48239278,2498.0,2497.7,0.8235]
[1730854866711,0.07161798,2498.0,2497.7,0.8235]
[1730854866863,0.07161798,2498.0,2497.4,0.01]
[1730854867069,4.00337,2497.9,2497.5,35.0]
[1730854867614,8.00683,2497.9,2497.5,35.0]
[1730854867908,0.8078448,2497.8,2497.5,35.0]
[1730854868105,4.00345,2497.9,2497.5,35.0]
[1730854868261,4.00369,2497.7,2497.5,35.0]
[1730854868492,4.00345,2497.9,2497.5,35.0]
[1730854868877,4.00384,2497.6,2497.2,0.01]
[1730854869105,0.800745,2497.6,2497.2,0.01]
[1730854869288,4.00357,2497.8,2497.2,4.01439]
[1730854869498,4.00357,2497.8,2497.3,0.08007387]
[1730854869802,0.84021798,2498.0,2497.3,0.08007387]
[1730854869998,0.84021798,2498.0,2497.0,0.8335]
[1730854869999,4.00389,2497.6,2497.0,0.8335]
[1730854870202,4.00389,2497.6,2496.2,0.01]
[1730854870203,0.7686,2497.5,2496.6,0.01]
[1730854870407,4.00432,2497.3,2496.6,0.01]
[1730854870604,4.0053,2496.7,2496.4,0.01]
[1730854870908,0.57686,2497.4,2496.6,0.01]
[1730854871063,4.00448,2497.3,2496.6,0.01]
[1730854871267,4.00442,2497.3,2496.6,4.01534]
[1730854871463,4.00442,2497.3,2496.7,0.90359387]
[1730854871464,4.0044,2497.3,2496.7,0.90359387]
[1730854871659,0.7686,2497.8,2496.9,0.01]
[1730854871865,0.7686,2497.8,2496.7,0.8335]
[1730854871866,4.00444,2497.3,2496.7,0.8335]
[1730854872163,0.07161798,2498.0,2496.7,0.8335]
[1730854872368,0.07161798,2498.0,2494.3,5.40358217]
[1730854872369,0.07161798,2498.0,2497.9,4.82872654]
[1730854872627,0.07161798,2498.0,2497.9,1.31637265]
[1730854872900,0.07161798,2498.0,2497.9,0.8235]
[1730854873105,0.07161798,2498.0,2497.9,35.8235]
[1730854873304,0.07161798,2498.0,2497.9,35.01]
[1730854874107,0.07161798,2498.0,2497.9,39.83686]
[1730854874438,0.00920133,2498.8,2498.4,0.01]
[1730854874579,0.00920133,2498.8,2498.7,0.01]
[1730854874781,0.00920133,2498.8,2498.7,0.8335]
[1730854875710,4.0693687,2499.4,2499.3,0.8235]
[1730854875711,0.0684087,2499.4,2499.3,0.8235]
[1730854875892,0.0684087,2499.4,2498.6,0.01]
[1730854875893,0.0684087,2499.4,2499.0,0.8235]
[1730854876231,0.0684087,2499.4,2499.3,0.8235]
[1730854876379,4.0694687,2499.4,2498.9,0.01]
[1730854876580,0.0684087,2499.4,2498.7,0.8335]
[1730854876781,4.00128,2499.2,2498.7,0.01]
[1730854876975,0.7686,2499.3,2498.6,4.00221]
[1730854877186,4.00144,2499.1,2498.7,35.0]
[1730854877388,4.00155,2499.1,2498.7,35.0]
[1730854877677,0.0684087,2499.4,2498.9,0.01]
[1730854877835,0.0684087,2499.4,2499.3,0.01]
[1730854878124,0.0684087,2499.4,2499.0,0.8235]
[1730854878325,0.0684087,2499.4,2499.3,0.8335]
[1730854878936,0.0684087,2499.4,2499.3,0.8235]
[1730854879137,0.0684087,2499.4,2499.3,0.8335]
[1730854879296,0.0684087,2499.4,2499.3,4.83462]
[1730854879494,0.0684087,2499.4,2499.3,0.8335]
[1730854881150,4.00121,2499.3,2498.7,0.01]
[1730854881461,4.00121,2499.3,2498.5,0.8235]
[1730854881462,4.00136,2499.2,2498.8,0.01]
[1730854881663,0.7686,2499.3,2498.6,0.01]
[1730854881956,4.00169,2499.0,2498.3,0.09002985]
[1730854882318,0.7686,2499.3,2498.4,0.01]
[1730854882652,0.7686,2499.3,2498.4,0.09002946]
[1730854882860,4.00147,2499.1,2498.4,0.01]
[1730854883018,0.0684087,2499.4,2499.2,0.01]
[1730854883218,4.00133,2499.2,2498.9,0.01]
[1730854883450,0.0684087,2499.4,2498.9,0.01]
[1730854883760,0.67653237,2499.4,2499.1,0.01]
[1730854883967,0.67653237,2499.4,2498.7,0.8335]
[1730854883968,0.0684087,2499.4,2498.7,0.8335]
[1730854884128,4.0693987,2499.4,2499.0,0.01]
[1730854884317,4.0693987,2499.4,2498.8,0.01]
[1730854884518,4.00137,2499.2,2498.9,0.01]
[1730854884912,4.00137,2499.2,2498.7,0.8235]
[1730854885217,0.0684087,2499.4,2498.5,0.01]
[1730854885218,4.00169,2499.0,2498.5,0.01]
[1730854885425,4.00226,2498.6,2498.1,0.01]
[1730854885729,4.00176,2498.9,2498.1,0.01]
[1730854885938,4.00196,2498.8,2498.1,0.01]
[1730854886149,4.0021,2498.7,2498.1,0.01]
[1730854886467,4.0021,2498.7,2498.0,0.08003895]
[1730854886468,0.7686,2499.0,2498.3,0.01]
[1730854886636,5.34719,2499.0,2498.3,0.01]
[1730854886820,4.00192,2498.8,2498.3,0.01]
[1730854887022,4.00192,2498.8,2498.1,0.01]
[1730854887255,0.57686,2499.0,2498.1,0.01]
[1730854887256,4.00233,2498.6,2498.1,0.01]
[1730854887464,0.7686,2498.7,2497.4,0.01]
[1730854887675,5.57686,2498.6,2497.4,0.09006629]
[1730854887959,4.0029,2498.2,2497.5,0.01]
[1730854888162,4.0032,2498.0,2497.0,0.01]
[1730854888371,1.73064438,2498.2,2497.9,0.01]
[1730854888534,1.73064438,2498.2,2497.1,0.01]
[1730854888535,1.73064438,2498.2,2498.1,0.01]
[1730854888735,1.73064438,2498.2,2498.0,0.826]
[1730854888979,1.73064438,2498.2,2497.9,0.01]
[1730854888980,1.73064438,2498.2,2497.8,0.01]
[1730854889541,1.73064438,2498.2,2497.7,0.826]
[1730854889542,1.73064438,2498.2,2498.0,0.01]
[1730854889742,1.73064438,2498.2,2497.7,0.836]
[1730854890083,1.73064438,2498.2,2497.9,0.01]
[1730854890992,1.73064438,2498.2,2498.0,0.01]
[1730854891582,1.73064438,2498.2,2498.0,0.09005182]
[1730854891793,5.0,2499.1,2497.3,4.00427]
[1730854891794,4.00152,2499.1,2498.3,0.01]
[1730854891973,4.00208,2498.7,2498.3,0.01]
[1730854892439,4.0793987,2499.4,2498.7,0.01]
[1730854892440,4.00122,2499.3,2498.7,0.01]
[1730854892843,4.0694687,2499.4,2498.7,0.01]
[1730854893295,4.00128,2499.2,2498.7,0.01]
[1730854893440,4.00137,2499.2,2498.5,0.01]
[1730854893647,0.40696887,2499.2,2498.7,0.01]
[1730854893939,4.40825887,2499.2,2498.7,0.01]
[1730854894486,8.00238,2499.3,2498.7,0.01]
[1730854894646,4.00112,2499.3,2498.7,0.01]
[1730854895080,0.0684087,2499.4,2498.4,0.826]
[1730854895081,5.0,2499.2,2498.4,0.826]
[1730854895385,9.00133,2499.2,2498.2,0.01]
[1730854895545,4.00197,2498.8,2498.2,0.01]
[1730854895884,4.00196,2498.8,2498.2,0.01]
[1730854896196,0.400196,2498.8,2498.2,0.01]
[1730854896495,0.400196,2498.8,2498.1,0.826]
[1730854896496,4.00192,2498.8,2498.1,0.826]
[1730854896791,5.0,2498.9,2497.9,0.01]
[1730854897001,9.00176,2498.9,2497.9,0.01]
[1730854897154,4.00248,2498.5,2497.9,0.01]
[1730854897350,4.00224,2498.6,2497.9,0.09005569]
[1730854897555,0.7598,2499.2,2497.9,0.09005569]
[1730854897556,0.0684087,2499.4,2498.3,0.01]
[1730854897749,4.0693687,2499.4,2498.8,0.836]
[1730854897951,0.0684087,2499.4,2498.9,0.08002494]
[1730854898261,0.0684087,2499.4,2499.1,0.01]
[1730854898862,0.0684087,2499.4,2499.1,0.09001919]
[1730854899363,0.0684087,2499.4,2498.8,0.826]
[1730854899563,0.0684087,2499.4,2499.1,0.01]
[1730854899760,0.0684087,2499.4,2498.8,0.826]
[1730854900051,0.7598,2499.3,2498.5,0.01]
[1730854900253,0.7598,2499.3,2498.3,0.35330134]
[1730854900254,8.00436,2498.7,2498.3,0.01]
[1730854900567,4.00216,2498.7,2498.3,0.01]
[1730854900771,4.00176,2498.9,2497.6,0.01]
[1730854900772,0.7598,2498.4,2497.6,0.01]
[1730854900981,4.00326,2498.0,2497.5,0.826]
[1730854901290,0.400326,2498.0,2497.5,0.01]
[1730854901490,4.00334,2498.0,2497.3,0.36431685]
[1730854901689,4.0032,2498.0,2497.3,0.01]
[1730854901895,1.73059528,2498.3,2497.5,0.01]
[1730854901896,4.00288,2498.2,2497.5,0.01]
[1730854902104,1.73059528,2498.3,2497.4,0.826]
[1730854902402,0.7598,2499.1,2497.4,0.826]
[1730854902403,4.00218,2498.7,2498.2,0.826]
[1730854902553,0.7598,2499.1,2498.4,0.01]
[1730854902758,4.00207,2498.8,2498.2,0.836]
[1730854902967,4.00209,2498.7,2498.2,0.836]
[1730854903262,4.00233,2498.6,2498.2,0.836]
[1730854903464,4.00201,2498.8,2498.2,0.91604891]
[1730854903798,4.00168,2499.0,2498.3,0.43393634]
[1730854904021,4.00168,2499.0,2498.3,0.08004731]
[1730854904022,0.476148,2499.0,2498.3,0.08004731]
[1730854904229,4.76127,2499.1,2498.3,0.08004731]
[1730854904524,1.09134237,2499.4,2498.5,0.01]
[1730854904708,4.00128,2499.2,2498.5,0.44381012]
[1730854905023,4.00148,2499.1,2498.5,0.44378599]
[1730854905330,0.8833087,2499.4,2498.5,0.4546396]
[1730854905497,4.00159,2499.1,2498.6,0.08003454]
[1730854905701,0.0684087,2499.4,2499.3,0.01]
[1730854906032,2.01192802,2499.5,2499.4,8.37376]
[1730854906033,0.41373672,2499.5,2499.4,8.37376]
[1730854906213,0.601,2500.0,2499.9,0.01]
[1730854906391,0.601,2500.0,2499.9,8.38296]
[1730854906590,0.0684087,2500.7,2500.6,4.00904]
[1730854906787,0.0684087,2500.7,2500.6,4.51794]
[1730854907195,0.0684087,2500.7,2500.6,0.5189]
[1730854907423,0.01,2501.0,2500.9,0.01]
[1730854907772,0.0797967,2501.0,2500.9,0.01]
[1730854908227,0.0797967,2501.0,2500.7,0.01]
[1730854908383,0.0797967,2501.0,2500.9,0.01]
[1730854909335,0.0797967,2501.0,2500.9,4.409418]
[1730854910126,3.99881,2500.8,2500.3,0.01]
[1730854910431,3.99913,2500.6,2500.3,0.01]
[1730854910599,0.0697967,2500.8,2500.7,0.01]
[1730854911516,0.0697967,2500.8,2500.6,0.8128]
[1730854911714,0.0697967,2500.8,2499.7,0.01]
[1730854911715,4.0685167,2500.8,2500.4,0.01]
[1730854912005,0.0697967,2500.8,2500.7,0.01]
[1730854912562,0.005,2501.2,2500.7,0.8028]
[1730854912725,0.01,2502.1,2499.9,0.01]
[1730854912726,1.24432225,2503.8,2503.7,3.99398]
[1730854912924,2.90362066,2504.5,2501.4,3.69163161]
[1730854912925,1.2442657,2504.5,2504.4,4.00297]
[1730854913143,0.48240694,2504.5,2504.4,1.86125762]
[1730854913345,0.0699515,2505.0,2504.9,0.01]
[1730854913650,3.99265,2504.6,2504.5,0.01]
[1730854913852,0.47613365,2505.0,2504.1,0.01]
[1730854914160,0.47613365,2505.0,2503.5,0.78505478]
[1730854914161,0.8149,2504.7,2503.9,0.01]
[1730854914308,0.8149,2504.7,2504.4,0.01]
[1730854914309,3.99251,2504.7,2504.4,0.01]
[1730854914503,0.0699515,2505.0,2504.6,0.01]
[1730854914742,0.0699515,2505.0,2504.5,0.01]
[1730854914743,3.99255,2504.7,2504.5,0.01]
[1730854915050,0.0699515,2505.0,2504.3,0.01]
[1730854915206,0.0699515,2505.0,2504.1,0.01]
[1730854915207,0.01,2504.7,2504.1,0.01]
[1730854915563,3.99301,2504.4,2504.1,0.01]
[1730854915855,3.99329,2504.2,2504.1,0.01]
[1730854915999,3.99303,2504.4,2504.1,0.01]
[1730854916405,3.99267,2504.6,2504.1,0.01]
[1730854916717,3.99315,2504.3,2504.1,0.01]
[1730854917146,0.0699515,2505.0,2504.9,0.01]
[1730854917429,0.0699515,2505.0,2504.9,0.8128]
[1730854917837,0.0699515,2505.0,2504.9,0.01]
[1730854918706,0.0699515,2505.0,2504.9,0.08981931]
[1730854919155,0.0699515,2505.0,2504.9,0.01]
[1730854919355,0.0699515,2505.0,2504.9,1.3957]
[1730854919701,0.0699515,2505.0,2504.9,0.8357]
[1730854920007,3.9909,2505.7,2505.6,0.01]
[1730854920208,3.99121,2505.5,2505.4,0.01]
[1730854920853,3.99082,2505.8,2505.5,0.8257]
[1730854921142,3.99025,2506.2,2505.9,0.01]
[1730854921305,3.99025,2506.2,2506.1,0.01]
[1730854921947,0.7631,2506.4,2505.6,0.01]
[1730854922157,0.01,2506.6,2505.8,0.01]
[1730854922300,0.7631,2506.9,2505.8,0.01]
[1730854922500,3.99058,2505.9,2505.8,0.01]
[1730854922823,3.99058,2505.9,2505.6,0.01]
[1730854922976,3.9909,2505.7,2505.6,0.01]
[1730854923129,3.9909,2505.7,2505.0,0.8157]
[1730854923130,3.99121,2505.5,2505.4,0.01]
[1730854923760,3.99121,2505.5,2505.0,0.8157]
[1730854923761,3.99106,2505.6,2505.1,0.01]
[1730854923959,3.99201,2505.0,2504.9,0.01]
[1730854924143,3.99184,2505.2,2505.1,0.01]
[1730854924569,3.99112,2505.6,2505.3,0.8257]
[1730854924784,3.99137,2505.4,2504.9,0.8257]
[1730854925081,3.99137,2505.4,2504.0,3.99355]
[1730854925082,3.99217,2504.9,2504.8,0.01]
[1730854925871,3.99217,2504.9,2504.5,0.8157]
[1730854925872,3.99249,2504.7,2504.6,0.01]
[1730854926080,3.99281,2504.5,2504.2,0.01]
[1730854926243,3.99313,2504.3,2504.2,0.01]
[1730854926647,3.99345,2504.1,2504.0,0.01]
[1730854926847,3.99272,2504.6,2503.8,0.01]
[1730854927209,4.468482,2504.5,2503.6,0.01]
[1730854927338,4.468482,2504.5,2503.4,0.01]
[1730854927339,3.99408,2503.7,2503.4,0.01]
[1730854927537,3.99431,2503.6,2503.4,0.01]
[1730854927786,3.99408,2503.7,2503.4,0.01]
[1730854927935,3.99408,2503.7,2503.4,0.08988022]
[1730854928286,3.99424,2503.6,2502.7,0.8157]
[1730854928431,3.99543,2502.9,2502.7,0.8157]
[1730854928635,3.99522,2503.0,2502.7,0.8157]
[1730854928834,3.9947,2503.4,2502.7,0.8157]
[1730854929045,3.99489,2503.2,2502.7,0.8157]
[1730854929250,3.99507,2503.1,2502.7,0.8157]
[1730854929563,3.99521,2503.0,2502.7,0.8157]
[1730854930460,3.99521,2503.0,2501.8,4.01706]
[1730854930461,3.99552,2502.8,2502.0,0.8157]
[1730854930661,5.419408,2503.7,2502.1,0.01]
[1730854930662,5.399408,2503.7,2502.1,0.01]
[1730854930863,3.99242,2504.8,2502.1,0.01]
[1730854930864,4.468402,2504.5,2502.9,3.99536]
[1730854931050,0.475582,2504.5,2503.3,4.00471]
[1730854931392,3.99274,2504.6,2503.3,0.01]
[1730854931547,0.7631,2505.0,2503.4,0.01]
[1730854931753,4.75518,2505.0,2503.8,0.8157]
[1730854932062,3.98,2505.5,2503.8,0.8157]
[1730854932063,0.7631,2505.5,2503.9,0.02]
[1730854932250,0.7631,2505.5,2503.8,3.8157]
[1730854932454,3.99175,2505.2,2503.8,4.80953]
[1730854932693,4.56777,2505.4,2503.9,0.0798373]
[1730854932869,3.9918,2505.2,2503.8,4.8095]
[1730854933074,3.99242,2504.8,2503.8,0.8157]
[1730854933274,5.58631,2505.4,2503.8,0.8157]
[1730854933275,3.99253,2504.7,2503.8,0.8157]
[1730854933469,3.99183,2505.2,2503.9,0.07985334]
[1730854933675,3.99196,2505.1,2503.8,0.8157]
[1730854934061,3.99201,2505.0,2503.8,0.8157]
[1730854934296,3.99259,2504.7,2503.8,0.8157]
[1730854934506,3.99228,2504.9,2503.8,0.8157]
[1730854934665,0.399228,2504.8,2503.8,0.8157]
[1730854934872,3.99234,2504.8,2503.8,0.8157]
[1730854935193,3.99157,2505.3,2503.9,0.07985344]
[1730854935194,3.99153,2505.3,2503.9,0.07985344]
[1730854935396,4.7544,2505.5,2504.1,0.7786]
[1730854935397,0.52631,2505.4,2504.1,0.7786]
[1730854935694,0.52631,2505.4,2503.5,3.99436]
[1730854935695,3.99114,2505.6,2504.4,0.7786]
[1730854935894,3.9914,2505.4,2504.4,0.7786]
[1730854936254,0.8081,2506.0,2504.5,0.07983277]
[1730854936455,4.78853,2506.0,2504.6,3.99254]
[1730854936719,3.9914,2505.4,2504.4,0.7786]
[1730854937002,5.0,2505.8,2504.4,0.7786]
[1730854937297,3.99183,2505.2,2504.4,0.7786]
[1730854937465,3.99203,2505.0,2504.4,0.7786]
[1730854937670,7.98362,2505.2,2504.4,0.7786]
[1730854937881,0.798362,2505.1,2504.4,0.7786]
[1730854938093,3.99179,2505.2,2504.5,0.0798453]
[1730854938259,3.99196,2505.1,2504.4,0.7786]
[1730854938596,3.99229,2504.9,2503.8,0.7786]
[1730854939068,0.7981,2505.2,2503.8,0.7786]
[1730854939069,3.9927,2504.6,2503.8,0.7786]
[1730854939263,3.99262,2504.7,2503.8,0.7786]
[1730854939495,3.9929,2504.5,2503.8,0.7786]
[1730854939854,3.99301,2504.4,2503.8,0.7786]
[1730854940064,3.99353,2504.1,2503.1,0.7786]
[1730854940292,3.99389,2503.9,2503.2,0.07987288]
[1730854940449,0.399389,2503.8,2503.2,0.07987288]
[1730854940652,3.99371,2504.0,2503.2,0.0798857]
[1730854940858,3.99354,2504.1,2503.1,0.7786]
[1730854941083,3.99383,2503.9,2503.1,0.7786]
[1730854941401,3.99371,2504.0,2503.1,0.7786]
[1730854941626,3.99371,2504.0,2503.2,0.07988511]
[1730854941828,0.399371,2503.9,2503.2,0.07988511]
[1730854942184,0.7981,2505.0,2503.6,0.7786]
[1730854942488,3.99176,2505.2,2504.0,0.7786]
[1730854942489,7.98356,2505.2,2504.0,0.7786]
[1730854942688,3.99144,2505.4,2504.2,3.99318]
[1730854942929,3.99144,2505.4,2504.1,4.07326878]
[1730854942930,3.99122,2505.5,2504.5,3.99272]
[1730854943224,0.488853,2505.9,2504.8,0.7786]
[1730854943225,4.469533,2505.9,2504.8,0.7786]
[1730854943424,0.4469533,2505.8,2504.8,4.7709]
[1730854943798,0.4469533,2505.8,2503.9,0.7886]
[1730854943799,0.7981,2505.7,2503.9,0.7886]
[1730854943999,3.99153,2505.3,2504.1,3.9934]
[1730854944203,3.99186,2505.1,2504.1,3.9934]
[1730854944402,3.99177,2505.2,2504.1,3.99336]
[1730854944597,0.478987,2505.2,2504.0,3.0]
[1730854944801,3.99228,2504.9,2503.9,0.7786]
[1730854945024,3.99228,2504.9,2503.9,4.77232]
[1730854945529,3.99193,2505.1,2503.9,0.7786]
[1730854945530,3.99265,2504.7,2503.9,0.7786]
[1730854945713,3.99297,2504.4,2503.9,0.7786]
[1730854945918,3.99291,2504.5,2503.9,0.7786]
[1730854946105,3.99121,2505.5,2503.9,0.7786]
[1730854946288,3.99251,2504.7,2503.9,0.7786]
[1730854946491,3.99227,2504.9,2504.0,35.0]
[1730854946711,3.99227,2504.9,2504.1,0.07985532]
[1730854947012,5.01,2505.5,2504.1,0.07985532]
[1730854947216,0.58081,2505.4,2504.2,0.7786]
[1730854947393,3.99165,2505.3,2504.3,38.99303]
[1730854947593,3.99196,2505.1,2504.3,35.0]
[1730854947859,3.99164,2505.3,2504.3,35.0]
[1730854948054,0.58081,2505.4,2504.3,35.0]
[1730854948055,3.99202,2505.0,2504.3,35.0]
[1730854948189,0.798395,2505.0,2504.3,35.0]
[1730854948393,0.798395,2505.0,2502.0,0.78505478]
[1730854948394,3.99233,2504.8,2503.8,0.7606]
[1730854948608,3.99306,2504.4,2503.8,0.7606]
[1730854948803,5.0,2504.6,2503.9,35.0]
[1730854949003,3.99311,2504.4,2503.4,0.7606]
[1730854949218,3.99348,2504.1,2503.4,0.7606]
[1730854949507,3.99343,2504.2,2503.5,35.07987686]
[1730854949707,9.00268,2504.6,2503.6,3.99424]
[1730854949708,3.99293,2504.5,2503.6,3.99424]
[1730854949951,3.99293,2504.5,2503.7,0.0798673]
[1730854950137,3.99269,2504.6,2503.7,4.0738573]
[1730854950342,0.7981,2504.9,2503.2,3.99485]
[1730854950343,5.01,2505.0,2503.8,35.7606]
[1730854950513,3.99259,2504.7,2503.9,0.07986221]
[1730854950855,3.99234,2504.8,2503.8,35.7606]
[1730854951148,3.99288,2504.5,2503.8,35.7606]
[1730854951446,7.98578,2504.5,2503.8,35.7606]
[1730854951743,3.99309,2504.4,2503.8,35.7606]
[1730854951905,0.8155,2504.4,2503.8,35.0]
[1730854952107,3.99326,2504.3,2503.4,4.75502]
[1730854952318,3.99282,2504.5,2503.4,4.75502]
[1730854952319,3.99293,2504.5,2503.5,4.42640652]
[1730854952551,0.8155,2504.8,2503.6,39.34640537]
[1730854952752,3.99259,2504.7,2503.7,4.42608613]
[1730854952957,3.99261,2504.7,2503.8,1.11284537]
[1730854953163,4.473174,2504.8,2503.9,3.99366]
[1730854953324,3.99238,2504.8,2503.9,3.99362]
[1730854953527,3.9925,2504.7,2504.0,35.0]
[1730854953714,3.99268,2504.6,2504.0,35.0]
[1730854953915,3.99299,2504.4,2504.0,35.0]
[1730854954143,3.99268,2504.6,2504.0,35.0]
[1730854954344,3.99253,2504.7,2504.1,0.07986062]
[1730854954618,3.99253,2504.7,2504.0,35.0]
[1730854954973,1.599078,2507.3,2504.5,3.99271]
[1730854954974,3.99147,2505.4,2504.5,3.99271]
[1730854955263,5.8255,2505.5,2504.1,0.56394372]
[1730854955554,3.99173,2505.2,2504.3,3.9931]
[1730854955918,3.99173,2505.2,2504.3,3.99309]
[1730854956260,3.99197,2505.1,2504.3,3.99308]
[1730854956550,3.99213,2505.0,2504.2,3.99317]
[1730854956754,7.98393,2505.1,2504.2,3.99317]
[1730854957062,3.99218,2504.9,2504.1,3.99331]
[1730854957263,3.99235,2504.8,2504.2,0.47745817]
[1730854957469,3.99252,2504.7,2504.0,35.7606]
[1730854957635,0.8155,2504.9,2504.1,0.124943]
[1730854957636,3.99291,2504.5,2504.1,0.124943]
[1730854957822,3.99291,2504.5,2504.0,35.7606]
[1730854957823,3.99297,2504.4,2504.0,35.7606]
[1730854958019,5.206918,2504.9,2504.0,35.0]
[1730854958020,3.99329,2504.2,2504.0,35.0]
[1730854958227,3.99345,2504.1,2503.6,0.7606]
[1730854958452,3.99345,2504.1,2503.5,1.76462773]
[1730854958453,3.99408,2503.7,2503.5,1.76462773]
[1730854958623,3.9938,2503.9,2503.7,0.19994954]
[1730854958819,3.99392,2503.8,2503.7,35.0]
[1730854959055,3.99392,2503.8,2503.7,35.12498381]
[1730854959371,3.99392,2503.8,2503.7,35.0]
[1730854959539,3.99417,2503.7,2503.4,0.35305583]
[1730854959724,3.99388,2503.9,2503.5,0.12498826]
[1730854959926,0.8155,2504.2,2503.6,35.12498826]
[1730854960125,3.99368,2504.0,2503.7,0.12498826]
[1730854960339,3.99345,2504.1,2503.8,0.12498826]